Cogmind - Beta 15 @@@ ROGUE MODE // 2025.08.27 @ 12:22:18 Player: Nika Jay Result: Self-destructed Performance ------------- Evolutions (5) 2500 Regions Visited (15) 3000 Robots Destroyed (260) 1300 Value Destroyed (7938) 7938 Prototype IDs (22) 440 Alien Tech Used (0) 0 Bonus (4248) 4248 TOTAL SCORE: 19426 Bonus ------- Triggered High Security 500 High Alert Combat Kills 1063 Follower Combat Kills 1507 Network Hubs Disabled 400 Registered with UFD 300 Met Optimus in HQ 500 Friendly Fire -22 Cogmind --------- Core Integrity 902/1000 Matter 279/300 Energy 17/125 System Corruption 5% Temperature Cool (74) Movement Rolling (200) Ox13 Location -5/Factory Parts ------- > --- POWER (1) -------- Light Ion Engine > --- PROPULSION (2) --- Overtuned Scrapsphere > --- UTILITY (9) ------ Scrap Suit Advanced Heat Sink Advanced Heat Sink Huge Storage Unit Advanced Sensor Array Advanced Signal Interpreter Centrium Medium Armor Plating > --- WEAPON (5) ------- Advanced Variable Charge Gun Overtuned Barrage Gun Power Sword > --- INVENTORY (25) --- Matter Compressor (116) Advanced Sensor Array Advanced Sensor Array Advanced Signal Interpreter Advanced Targeting Computer Centrium Medium Armor Plating High-powered Tractor Beam Advanced Variable Charge Gun Rocket Launcher Plasma Cutter Power Sword Peak State ------------ > --- POWER ------------ Reinforced Deuterium Engine > --- PROPULSION ------- Overtuned Scrapsphere Overtuned Scrapsphere > --- UTILITY ---------- Scrap Suit Advanced Heat Sink Advanced Heat Sink Huge Storage Unit Advanced Signal Interpreter 0b10 Decoder Chip [Scout] Centrium Medium Armor Plating > --- WEAPON ----------- Beamcaster Heavy Beamcaster Improved Heavy Machine Gun KE Penetrator > --- INVENTORY -------- Quantum Reactor Overtuned Scrapsphere Scrap Suit Advanced Heat Sink Advanced Heat Sink Matter Compressor Advanced Sensor Array Advanced Sensor Array Advanced Signal Interpreter Advanced Targeting Computer Improved Medium Armor Plating Centrium Medium Armor Plating Centrium Medium Armor Plating High-powered Tractor Beam Advanced Variable Charge Gun Advanced Variable Charge Gun Overtuned Barrage Gun Overtuned Barrage Gun Flak Gun Flak Gun Rocket Launcher Plasma Cutter Power Sword Power Sword [Rating: 83] Favorites ----------- Power Heavy Ion Engine Engine Heavy Ion Engine Power Core Micro Nuclear Core Reactor Light Antimatter Reactor Propulsion Armored Wheel Wheel Armored Wheel Utility Huge Storage Unit Device Scrap Suit Storage Huge Storage Unit Processor 0b10 Decoder Chip [Scout] Protection Hardened Heavy Armor Plating Weapon Heavy Assault Rifle Energy Gun Improved EM Shotgun Ballistic Gun Heavy Assault Rifle Launcher Rocket Launcher Special Weapon Plasma Cutter Slashing Weapon Scythe Special Melee Weapon Improved Datajack Build | -11 -10 -9 -9 -9 -8 -8 -8 -8 -8 -6 -6 -6 -6 -6 -5 ------- Run | Yrd Mat Mat Min Exi Min Mat Sto Rec Scr Fac Ext Cet Arc Hub Fac Slots Evolved 10 | . . 2 . . . 2 . . . 4 . . . . 2 Power . | . . . . . . . . . . . . . . . . Propulsion . | . . . . . . . . . . . . . . . . Utility 7 | . . 1 . . . 2 . . . 3 . . . . 1 Weapon 3 | . . 1 . . . . . . . 1 . . . . 1 Parts Attached 159 | 8 9 15 . . 3 18 14 5 3 30 20 5 11 9 9 Power 20 | 1 2 4 . . . 1 2 . . 3 3 . . 1 3 Engine 14 | 1 2 4 . . . 1 2 . . 1 2 . . . 1 Core 3 | . . . . . . . . . . 1 . . . . 2 Reactor 3 | . . . . . . . . . . 1 1 . . 1 . Propulsion 21 | 2 1 5 . . 2 3 2 3 . 2 . . . 1 . Treads . | . . . . . . . . . . . . . . . . Leg . | . . . . . . . . . . . . . . . . Wheel 21 | 2 1 5 . . 2 3 2 3 . 2 . . . 1 . Hover . | . . . . . . . . . . . . . . . . Flight . | . . . . . . . . . . . . . . . . Utility 53 | 3 3 2 . . . 6 2 1 1 12 5 4 7 5 2 Device 32 | 2 . 2 . . . 4 . . 1 7 4 2 4 4 2 Storage 4 | 1 1 . . . . . . 1 . . . . . 1 . Processor 3 | . . . . . . . . . . 3 . . . . . Hackware . | . . . . . . . . . . . . . . . . Protection 14 | . 2 . . . . 2 2 . . 2 1 2 3 . . Artifact . | . . . . . . . . . . . . . . . . Weapon 65 | 2 3 4 . . 1 8 8 1 2 13 12 1 4 2 4 Energy Gun 23 | 1 2 4 . . 1 4 . . . 1 4 1 2 1 2 Energy Cannon . | . . . . . . . . . . . . . . . . Ballistic Gun 33 | 1 1 . . . . 3 5 1 1 10 7 . 2 1 1 Ballistic Cannon . | . . . . . . . . . . . . . . . . Launcher 3 | . . . . . . 1 2 . . . . . . . . Special Weapon 2 | . . . . . . . . . . 1 1 . . . . Impact Weapon . | . . . . . . . . . . . . . . . . Slashing Weapon 3 | . . . . . . . 1 . . 1 . . . . 1 Piercing Weapon . | . . . . . . . . . . . . . . . . Special Melee Weapon 1 | . . . . . . . . . 1 . . . . . . Unidentified Prototypes 9 | . 1 1 . . . 1 3 . . 1 . 1 . . 1 Corrupted Parts 1 | . 1 . . . . . . . . . . . . . . System Corruption 1 | . 1 . . . . . . . . . . . . . . Parts Lost 40 | . 1 1 . . 2 7 5 . . 4 1 2 . 9 8 Power 6 | . 1 1 . . . . 1 . . . . . . 1 2 Propulsion 6 | . . . . . 1 1 1 . . 1 . . . 1 1 Utility 12 | . . . . . . 1 3 . . 1 1 1 . 4 1 Weapon 16 | . . . . . 1 5 . . . 2 . 1 . 3 4 Highest Loss Streak 9 | . 1 1 . . 2 3 2 . . 2 1 2 . 9 4 To Critical Strikes 1 | . . . . . . . . . . . . 1 . . . Average Backups 21 | 4 11 20 25 25 24 22 22 23 22 21 22 23 24 23 13 Power . | . . 1 2 2 2 2 1 1 . . 1 1 1 . . Propulsion 3 | 2 6 4 7 7 6 4 3 3 4 3 2 2 1 . . Utility 9 | . 4 7 8 8 8 7 9 8 8 10 10 10 11 11 7 Weapon 6 | . 1 5 7 7 6 6 6 8 7 5 7 8 9 8 4 Tool/Special . | . . . . . . . . . . . . . . . . Unused Backups 44 | 1 . 6 1 . . 6 3 1 5 12 . 1 1 . 7 Power 7 | 1 . 3 . . . . 1 . 1 . . 1 . . . Propulsion 11 | . . 2 . . . 2 . 1 . 5 . . 1 . . Utility 17 | . . . . . . 1 2 . 4 4 . . . . 6 Weapon 9 | . . 1 1 . . 3 . . . 3 . . . . 1 Tool/Special . | . . . . . . . . . . . . . . . . Average Slot Usage (%) 88 | . 97 97 100 100 99 97 91 90 81 85 85 92 92 91 80 Engine 6 | . 12 11 11 11 11 9 8 9 9 2 5 6 6 5 . Wheel 16 | . 28 22 22 22 21 18 18 18 18 12 13 13 13 12 6 Device 11 | . 6 9 11 11 11 17 11 9 6 13 13 19 19 19 21 Storage 7 | . 14 11 11 11 11 9 9 9 9 6 6 6 6 6 5 Processor 5 | . . . . . . . . . . 12 13 13 13 12 5 Protection 9 | . 7 11 11 11 11 17 17 18 12 6 5 6 6 6 10 Energy Gun 7 | . 15 31 33 33 33 22 . . . . 4 10 13 12 7 Ballistic Gun 18 | . 12 . . . . 3 25 25 25 22 21 13 12 12 10 Peak Build Rating 83 | 10 14 22 21 21 21 25 33 33 38 70 71 80 83 83 82 Average Rating 45 | 7 10 19 21 21 20 23 26 32 32 58 68 76 79 75 75 On Entrance 37 | . 8 14 21 21 21 20 24 32 33 37 69 68 80 79 68 Naked Turns . | . . . . . . . . . . . . . . . . Heaviest Build 137 | 12 96 105 105 105 105 111 131 128 128 133 137 135 129 128 128 Greatest Support 32 | 26 32 32 20 20 20 32 32 32 24 28 16 16 16 16 16 Greatest Overweight (x) 15 | . 3 5 5 5 10 5 7 5 5 15 8 8 8 7 15 Average Overweight (x) 5 | . 1 3 5 5 5 3 3 4 4 5 7 7 7 7 12 Largest Inventory Capacity 25 | 8 25 25 25 25 25 25 25 25 25 25 25 25 25 25 25 Average Capacity 24 | 7 22 25 25 25 25 25 25 25 25 25 25 25 25 25 25 Most Carried 25 | 8 17 25 25 25 25 25 25 25 25 25 25 25 25 25 17 Average Carried 23 | 4 11 20 25 25 24 24 24 25 24 24 24 24 24 24 13 Final Capacity 25 | 8 25 25 25 25 25 25 25 25 25 25 25 25 25 25 25 Final Carried 25 | 8 17 25 25 25 23 25 25 25 25 25 25 25 25 17 11 Class Distribution -------------------- 39% | Tank 18% | Scavenger-Tank 11% | Scavenger-Skirmisher 9% | Mutant 5% | Commander-Scrapper 5% | Scavenger-Scrapper 4% | Skirmisher Dominant Class ---------------- Mutant | -10/Materials Tank | -9/Materials Tank | -9/Mines Tank | -9/Exiles Tank | -8/Mines Tank | -8/Materials Scavenger-Tank | -8/Storage Tank | -8/Recycling Tank | -8/Scraptown Scavenger-Skirmisher | -6/Factory Commander-Scrapper | -6/Extension Scavenger-Scrapper | -6/Cetus Scavenger-Tank | -6/Archives Scavenger-Tank | -6/Hub_04(d) Scavenger-Scrapper | -5/Factory Resources | -11 -10 -9 -9 -9 -8 -8 -8 -8 -8 -6 -6 -6 -6 -6 -5 ----------- Run | Yrd Mat Mat Min Exi Min Mat Sto Rec Scr Fac Ext Cet Arc Hub Fac Matter Collected 7062 | 308 297 192 . . 30 190 536 206 20 2250 1877 93 371 448 244 Remotely 135 | . . . . . . . . . . . 135 . . . . Salvage Created 11355 | 218 466 1650 . . 265 980 787 216 . 1820 2231 88 393 2028 213 Parts 600 | 14 27 114 . . 13 71 54 7 . 93 86 5 26 86 4 Haulers Intercepted 5 | . 1 3 . . . . . . . . . . . 1 . Recyclers Shooed 21 | . 3 4 . . . . 2 1 . 8 2 . . 1 . Parts Field Recycled . | . . . . . . . . . . . . . . . . Retrieved Matter . | . . . . . . . . . . . . . . . . Parts Self-Destructed . | . . . . . . . . . . . . . . . . Prevented . | . . . . . . . . . . . . . . . . Kills | -11 -10 -9 -9 -9 -8 -8 -8 -8 -8 -6 -6 -6 -6 -6 -5 ------- Run | Yrd Mat Mat Min Exi Min Mat Sto Rec Scr Fac Ext Cet Arc Hub Fac Combat Hostiles Destroyed 173 | . 6 28 . . 7 23 16 2 . 25 36 1 3 16 10 Guns 139 | . 6 27 . . 5 18 12 2 . 23 25 1 3 15 2 AOE 31 | . . 1 . . 2 3 4 . . 2 10 . . 1 8 Classes Destroyed 19 | 3 6 2 . . . . 1 . . 2 4 . . . 1 Worker 22 | 2 2 7 . . . . . . . 1 . . . 10 . Builder 10 | . 1 1 . . . 1 1 . . 1 1 . . 4 . Tunneler 8 | 5 . . . . 1 . . . . . . . . 2 . Hauler 5 | . 1 3 . . . . . . . . . . . 1 . Recycler 24 | 1 1 3 . . . 1 2 1 . 6 2 . . 6 1 Mechanic 1 | . . . . . . . . . . . 1 . . . . Operator 8 | . 1 . . . . 1 . . . 1 . . 5 . . Watcher 13 | . 3 3 . . . 1 . . . . 1 1 . 3 1 Swarmer 55 | . 3 13 . . 4 11 3 . . 7 5 . . 6 3 Grunt 53 | . 3 8 . . 3 5 5 . . 7 16 . . 6 . Brawler 2 | . . 1 . . . 1 . . . . . . . . . Duelist 3 | . . . . . . . . . . 1 2 . . . . Protector 1 | . . . . . . . . . . . 1 . . . . Sentry 38 | . . 6 . . . 6 7 2 . 2 7 . 3 4 1 Specialist 2 | . . . . . . . . . . . 2 . . . . Hunter 3 | . . . . . . . 1 . . 2 . . . . . Programmer 7 | . . . . . . . . . . 6 1 . . . . Behemoth 2 | . . . . . . . . . . . 2 . . . . Cetus Guard 1 | . . . . . . . . . . . . 1 . . . Assembled 6 | . . . . . . . . . . . . . . . 6 Butcher 2 | . . . . . . . . . . . 2 . . . . Best Kill Streak 20 | 6 4 8 . . 4 5 6 1 . 4 8 2 3 20 7 Combat Bots Only 8 | . 3 8 . . 4 4 6 1 . 4 7 1 3 7 7 Max Kills in Single Turn 15 | 1 1 2 . . 2 2 4 1 . 1 4 1 1 15 4 Gunslinging 1 | . . 1 . . 1 1 . . . . 1 . . 1 . Exploded 4 | . . 1 . . 1 2 3 . . 1 4 . . 1 4 Melee . | . . . . . . . . . . . . . . . . Uniques/NPCs Destroyed . | . . . . . . . . . . . . . . . . Combat | -11 -10 -9 -9 -9 -8 -8 -8 -8 -8 -6 -6 -6 -6 -6 -5 -------- Run | Yrd Mat Mat Min Exi Min Mat Sto Rec Scr Fac Ext Cet Arc Hub Fac Hostile Shots Fired 1071 | . 55 74 . . 22 57 97 14 . 148 291 14 6 243 50 Missed 306 | . 8 25 . . 4 18 25 3 . 35 82 2 2 90 12 Hits 765 | . 47 49 . . 18 39 72 11 . 113 209 12 4 153 38 Melee 20 | . . . . . . . . . . 6 . . . . 14 Projectile 745 | . 47 49 . . 18 39 72 11 . 107 209 12 4 153 24 AOE 8 | . . . . . . . . . . . . . . . 8 Critical Strikes 26 | . . 4 . . . 1 1 1 . 7 5 1 . 6 . Part Disruptions 2 | . . . . . . . . . . 1 . . . 1 . Damage Taken 12298 | . 429 704 . . 236 693 860 148 . 2312 2745 309 97 2436 1329 Core 1220 | . 167 110 . . 31 121 41 14 . 235 158 28 . 217 98 Absorbed by Shields 54 | . . . . . . . 50 . . . 4 . . . . Ignored by Resistances 23 | . . . . . . . 6 17 . . . . . . . Regen/Repaired (Parts) 532 | . . . . . . . . . . 396 116 . 10 . 10 Core Remaining (%) 57 | 100 33 . . . 64 . . . 68 . . . . 24 . Volleys Fired 490 | 28 51 59 . . 9 35 47 10 . 77 89 5 24 43 13 Largest 4 | 2 2 3 . . 3 3 3 3 . 4 4 4 4 4 4 Hottest 270 | 70 90 135 . . 135 135 71 69 . 143 198 206 270 228 216 Shots Fired 1541 | 55 102 174 . . 27 93 135 30 . 285 322 19 96 173 30 Gun 1519 | 55 102 174 . . 27 93 132 30 . 278 316 19 96 173 24 Cannon . | . . . . . . . . . . . . . . . . Launcher 20 | . . . . . . . 3 . . 5 6 . . . 6 Special 2 | . . . . . . . . . . 2 . . . . . Kinetic 942 | 28 69 . . . . . 132 30 . 276 255 10 43 87 12 Thermal 273 | 27 23 . . . . . . . . 2 61 9 53 86 12 Explosive 20 | . . . . . . . 3 . . 5 6 . . . 6 Electromagnetic 304 | . 10 174 . . 27 93 . . . . . . . . . Robot Hit Streak 14 | 6 11 9 . . 6 12 14 9 . 14 14 12 14 11 5 Robot Miss Streak 8 | 3 4 5 . . 3 5 4 2 . 7 8 1 4 7 4 Penetration Max 1 | . . . . . . . . . . . 1 . 1 1 . Secondary Targets 21 | . 1 3 . . 3 3 . . . 4 2 . . 4 1 Max Gunslinging Chain 1 | . 1 1 . . 1 1 . . . 1 1 . . 1 1 Shots Hit Robots 973 | 31 65 113 . . 20 58 93 17 4 166 208 15 47 117 19 Core Hits 557 | 11 27 70 . . 15 41 35 6 . 85 144 8 19 70 26 Critical Kills 2 | . . . . . . . . . . . . . 1 1 . Critical Parts Destroyed 12 | . . . . . . . . . . . 8 . 3 1 . Critical Strikes 29 | 3 3 . . . . . . . . . 12 2 5 4 . Burn 15 | 3 3 . . . . . . . . . 4 2 1 2 . Destroy 14 | . . . . . . . . . . . 8 . 4 2 . Melee Attacks 71 | . . . . . . . 2 . 5 62 . . . . 2 Impact . | . . . . . . . . . . . . . . . . Slashing 66 | . . . . . . . 2 . . 62 . . . . 2 Piercing . | . . . . . . . . . . . . . . . . Sneak Attacks 14 | . . . . . . . . . 4 9 . . . . 1 Combat Hostiles . | . . . . . . . . . . . . . . . . Follow-up Attacks . | . . . . . . . . . . . . . . . . Damage Inflicted 24532 | 311 666 2119 . . 462 1203 1800 252 . 3605 6011 309 1217 5295 1282 Guns 17171 | 311 666 1664 . . 307 894 1340 252 . 2526 4474 309 1217 2933 278 Cannons . | . . . . . . . . . . . . . . . . Explosions 6447 | . . 455 . . 155 309 460 . . 386 1523 . . 2269 890 Melee 807 | . . . . . . . . . . 693 . . . . 114 Ramming 107 | . . . . . . . . . . . 14 . . 93 . Kinetic 10409 | 114 348 . . . . . 1340 252 . 2482 3564 136 609 1400 164 Thermal 4798 | 197 200 455 . . 155 309 . . . 44 1010 173 608 1533 114 Explosive 3159 | . . . . . . . 460 . . 386 1423 . . . 890 Electromagnetic 5252 | . 118 1664 . . 307 894 . . . . . . . 2269 . Impact . | . . . . . . . . . . . . . . . . Slashing 807 | . . . . . . . . . . 693 . . . . 114 Piercing . | . . . . . . . . . . . . . . . . Highest Corruption 9 | . 1 . . . . . . . . 4 6 6 6 9 5 Average Corruption 3 | . 1 . . . . . . . . 2 4 6 4 3 4 Corruption Purged 6 | . . . . . . . . . . . . . 6 . . Corruption Blocked . | . . . . . . . . . . . . . . . . Effects 141 | . 2 . . . . . . . . 57 60 8 7 2 5 Message Errors 24 | . . . . . . . . . . 13 9 1 . 1 . Matter Fused 42 | . 2 . . . . . . . . 17 18 1 4 . . Heat Flow Errors 15 | . . . . . . . . . . 4 6 4 . . 1 Energy Discharges 15 | . . . . . . . . . . 8 5 . 1 . 1 Parts Rejected 2 | . . . . . . . . . . . 1 . . . 1 Parts Fused 2 | . . . . . . . . . . . 2 . . . . Data Loss (minor) 16 | . . . . . . . . . . 5 7 2 2 . . Data Loss (major) 5 | . . . . . . . . . . 1 2 . . . 2 Misfires 5 | . . . . . . . . . . 2 2 . . 1 . Alerts 5 | . . . . . . . . . . 4 1 . . . . Weapon Failures 10 | . . . . . . . . . . 3 7 . . . . Overload Shots . | . . . . . . . . . . . . . . . . Overflow Damage 603 | . . 16 . . 7 7 45 . . 219 23 . . 197 89 Projectiles . | . . . . . . . . . . . . . . . . Explosions 451 | . . 16 . . 7 7 45 . . 69 23 . . 195 89 Melee 152 | . . . . . . . . . . 150 . . . 2 . Knockbacks 1 | . . . . . . . . . . . . . . 1 . Impact 1 | . . . . . . . . . . . . . . 1 . Kinetic . | . . . . . . . . . . . . . . . . Secondary . | . . . . . . . . . . . . . . . . Self-Inflicted Damage 789 | . . 153 . . 12 82 . . . 111 7 . . 235 189 Shots 19 | . . 6 . . 1 3 . . . 2 . . . 2 5 Rammed 13 | . . . . . . . . . . . 1 . . 12 . Targets Rammed 13 | . . . . . . . . . . . 1 . . 12 . Kicked . | . . . . . . . . . . . . . . . . Crushed . | . . . . . . . . . . . . . . . . Highest Temperature 439 | 280 127 221 . . 199 235 198 192 . 264 439 212 261 204 206 Average Temperature 94 | 131 51 82 . . 108 108 83 89 . 69 152 71 75 60 90 Received Heat Transfer 2542 | . 99 225 . . 90 216 285 72 . 336 820 . 9 390 . Effects 13 | 1 . . . . . . . . . . 9 . 3 . . Energy Bleed 5 | 1 . . . . . . . . . . 4 . . . . Interference 6 | . . . . . . . . . . . 3 . 3 . . Matter Decay 1 | . . . . . . . . . . . 1 . . . . Damage (minor) 1 | . . . . . . . . . . . 1 . . . . Siege Activations . | . . . . . . . . . . . . . . . . Martial Activations . | . . . . . . . . . . . . . . . . Shielding Activations . | . . . . . . . . . . . . . . . . Robots Disrupted 1 | . . 1 . . . . . . . . . . . . . Combat Hostiles 1 | . . 1 . . . . . . . . . . . . . Robots Corrupted 8 | . . 1 . . . 2 . . . . . . . 5 . Combat Hostiles 2 | . . . . . . 2 . . . . . . . . . Parts Fried 27 | . 2 11 . . 1 2 . . . . . . . 11 . Impact Corruptions 1 | . . . . . . . . . . . . . . 1 . Robots Melted 1 | . . . . . . . . . . . 1 . . . . Combat Hostiles 1 | . . . . . . . . . . . 1 . . . . Parts Melted 19 | . 1 . . . . . . . . 1 8 2 1 6 . Heat Transferred 9860 | 814 814 500 . . 250 350 . . . 74 2318 548 1086 2921 185 Parts Sabotaged . | . . . . . . . . . . . . . . . . Parts Stolen . | . . . . . . . . . . . . . . . . Parts Stripped . | . . . . . . . . . . . . . . . . Power Chain Reactions 16 | . . 9 . . 2 4 . . . . . . . 1 . Alert | -11 -10 -9 -9 -9 -8 -8 -8 -8 -8 -6 -6 -6 -6 -6 -5 ------- Run | Yrd Mat Mat Min Exi Min Mat Sto Rec Scr Fac Ext Cet Arc Hub Fac Maximum Alert Level 5 | . . 2 . . . 1 2 . . 2 5 4 2 3 2 Low Security (%) 45 | 100 100 20 100 . 100 25 14 100 . 67 6 . . 17 . Level 1 30 | . . 68 . . . 74 81 . . 11 37 . 49 41 66 Level 2 14 | . . 11 . . . . 3 . . 20 21 . 50 20 33 Level 3 3 | . . . . . . . . . . . 15 1 . 20 . Level 4 5 | . . . . . . . . . . . 16 98 . . . Level 5 . | . . . . . . . . . . . . . . . . High Security . | . . . . . . . . . . . 3 . . . . Max Security . | . . . . . . . . . . . . . . . . Peak Influence 2004 | 15 47 485 186 . 124 377 404 142 . 519 2004 1187 472 875 435 Initial 1121 | . . . 186 . . 36 131 136 . . 246 1121 440 109 372 Average 292 | 2 14 283 165 . 27 243 300 20 . 175 621 1139 393 414 379 Influence Increases 7836 | 40 236 957 . . 174 657 524 77 . 1006 2648 141 165 1004 207 Destroy 0b10 Robot/C 4000 | . 120 560 . . 140 460 320 40 . 560 1240 80 80 320 80 Destroy 0b10 Robot/NC 480 | 40 45 85 . . 5 20 15 5 . 40 50 5 25 130 15 Destroy Leader 748 | . 38 132 . . 20 112 110 . . 150 106 . . 68 12 Allied During Kill 1059 | . . . . . . . . . . 19 990 38 12 . . Successful Hack 224 | . 18 23 . . . 28 7 32 . 56 48 . . . 12 Disable Machine 690 | . . 90 . . . 15 30 . . 90 120 15 45 270 15 Destroy Structure 485 | . . 22 . . 9 22 27 . . 91 64 3 3 186 58 Partial Spotted 15 | . . 15 . . . . . . . . . . . . . Lose Combat Pursuer 135 | . 15 30 . . . . 15 . . . 30 . . 30 15 Influence Decreases 7507 | 40 236 480 341 136 80 438 486 428 . 502 1148 1043 952 558 639 Entered New Map 3280 | . . . 291 136 . 58 182 215 . . 258 883 662 206 389 Time Decay 3412 | 40 226 470 50 . 70 310 254 213 . 377 660 120 190 262 170 Lost Part 375 | . 10 10 . . 10 70 50 . . 25 10 20 . 90 80 Lost Ally 440 | . . . . . . . . . . 100 220 20 100 . . Squads Dispatched 36 | . 2 1 . . . 2 2 . . 15 6 . . 8 . Investigation 7 | . . 1 . . . . . . . 5 1 . . . . Extermination 7 | . . . . . . . . . . 7 . . . . . Reinforcement 9 | . 2 . . . . 1 . . . 2 2 . . 2 . Assault 3 | . . . . . . . . . . . 3 . . . . Garrison 10 | . . . . . . 1 2 . . 1 . . . 6 . Intercept . | . . . . . . . . . . . . . . . . Searches Triggered . | . . . . . . . . . . . . . . . . Construction Impeded 4 | . . . . . . . . . . 1 2 . . 1 . Haulers Reinforced . | . . . . . . . . . . . . . . . . Active Scanning Responses . | . . . . . . . . . . . . . . . . Cargo Convoy Interrupts 1 | . . . . . . . . . . 1 . . . . . Stealth | -11 -10 -9 -9 -9 -8 -8 -8 -8 -8 -6 -6 -6 -6 -6 -5 --------- Run | Yrd Mat Mat Min Exi Min Mat Sto Rec Scr Fac Ext Cet Arc Hub Fac Distress Signals 13 | . 1 1 . . . 4 2 . . . 1 1 . 3 . Communications Jammed . | . . . . . . . . . . . . . . . . Distress Signals . | . . . . . . . . . . . . . . . . Times Spotted 278 | . 12 38 . . 7 31 20 2 . 30 71 5 17 30 15 Peak Tracking Total 13 | . 4 6 . . 3 5 8 1 . 4 13 5 1 7 5 Tactical Retreats 8 | . 1 1 . . . . 1 . . . 2 . . 2 1 Traps | -11 -10 -9 -9 -9 -8 -8 -8 -8 -8 -6 -6 -6 -6 -6 -5 ------- Run | Yrd Mat Mat Min Exi Min Mat Sto Rec Scr Fac Ext Cet Arc Hub Fac Traps Triggered 7 | . . . . . . . 3 . . . 3 . . . 1 Indirectly . | . . . . . . . . . . . . . . . . Trap Hack Attempts . | . . . . . . . . . . . . . . . . Triggered . | . . . . . . . . . . . . . . . . Disarmed 11 | . . . . . . . . . . 5 6 . . . . Reprogrammed . | . . . . . . . . . . . . . . . . Reused . | . . . . . . . . . . . . . . . . Traps Extracted . | . . . . . . . . . . . . . . . . Installed . | . . . . . . . . . . . . . . . . Triggered . | . . . . . . . . . . . . . . . . Machines | -11 -10 -9 -9 -9 -8 -8 -8 -8 -8 -6 -6 -6 -6 -6 -5 ---------- Run | Yrd Mat Mat Min Exi Min Mat Sto Rec Scr Fac Ext Cet Arc Hub Fac Machines Disabled 48 | . . 6 . . . 1 2 . . 6 10 1 3 18 1 Max in Single Turn 10 | . . 2 . . . 1 1 . . 2 2 1 1 10 1 Garrison Access 3 | . . . . . . 1 1 . . 1 . . . . . Network Hub 2 | . . . . . . . . . . . . . . 2 . Energy Cycler 2 | . . . . . . . . . . . 2 . . . . Machines Repaired . | . . . . . . . . . . . . . . . . Machines Dismantled 3 | . . . . . . . . . . . 2 1 . . . Machines Sabotaged . | . . . . . . . . . . . . . . . . Overloaded Fab Kills . | . . . . . . . . . . . . . . . . Hacking | -11 -10 -9 -9 -9 -8 -8 -8 -8 -8 -6 -6 -6 -6 -6 -5 --------- Run | Yrd Mat Mat Min Exi Min Mat Sto Rec Scr Fac Ext Cet Arc Hub Fac Machines Accessed 74 | . 5 9 . 1 . 5 6 11 5 15 11 3 . 1 2 Terminals 42 | . 3 6 . . . 4 5 6 . 5 10 3 . . . Fabricators 2 | . . . . . . . . . . 1 . . . . 1 Repair Stations 4 | . . 1 . . . . . . . 3 . . . . . Recycling Units 14 | . 2 2 . . . . . 4 . 5 1 . . . . Scanalyzers 1 | . . . . . . . . . . . . . . . 1 Garrison Access 4 | . . . . . . 1 1 . . 1 . . . 1 . Total Hacks 200 | . 16 25 . 4 . 9 8 38 27 34 20 6 . 1 12 Successful 121 | . 5 11 . 4 . 6 4 26 27 22 11 1 . . 4 Failed 79 | . 11 14 . . . 3 4 12 . 12 9 5 . 1 8 Catastrophic 9 | . 1 . . . . 2 2 . . . 2 1 . . 1 Database Lockouts . | . . . . . . . . . . . . . . . . Manual 104 | . 14 19 . . . 6 1 31 . 23 9 1 . . . Terminals 102 | . 6 18 . . . 7 5 23 . 18 19 6 . . . Fabricators 6 | . . . . . . . . . . 3 . . . . 3 Repair Stations 6 | . . 2 . . . . . . . 4 . . . . . Recycling Units 36 | . 10 5 . . . . . 14 . 6 1 . . . . Scanalyzers 9 | . . . . . . . . . . . . . . . 9 Garrison Access 9 | . . . . . . 2 3 . . 3 . . . 1 . Terminal Hacks 53 | . 1 3 . 4 . 1 3 5 27 2 6 1 . . . Record 32 | . . . . 4 . . . 1 26 . . 1 . . . Prototype ID Bank 1 | . . . . . . . . 1 . . . . . . . Open Door 7 | . . . . . . . 3 . 1 . 3 . . . . Branch Access Points 2 | . . 1 . . . 1 . . . . . . . . . Terminal Index 1 | . . . . . . . . 1 . . . . . . . Locate Traps 2 | . 1 . . . . . . . . . 1 . . . . Disarm Traps 2 | . . . . . . . . . . 1 1 . . . . Transport Status 1 | . . . . . . . . 1 . . . . . . . Registered Components 1 | . . 1 . . . . . . . . . . . . . Zone Layout 4 | . . 1 . . . . . 1 . 1 1 . . . . Fabricator Hacks 2 | . . . . . . . . . . 1 . . . . 1 Network Status 2 | . . . . . . . . . . 1 . . . . 1 Repair Station Hacks 2 | . . . . . . . . . . 2 . . . . . Scan Component 1 | . . . . . . . . . . 1 . . . . . Repair 1 | . . . . . . . . . . 1 . . . . . Recycling Unit Hacks 3 | . . . . . . . . 2 . 1 . . . . . Report Inventory 2 | . . . . . . . . 2 . . . . . . . Retrieve Matter 1 | . . . . . . . . . . 1 . . . . . Scanalyzer 3 | . . . . . . . . . . . . . . . 3 Insert Component 2 | . . . . . . . . . . . . . . . 2 Analyze 1 | . . . . . . . . . . . . . . . 1 Garrison Access Hacks 3 | . . . . . . 1 1 . . 1 . . . . . Seal Access 3 | . . . . . . 1 1 . . 1 . . . . . Unauthorized Hacks 55 | . 4 8 . . . 4 . 19 . 15 5 . . . . Terminals 33 | . 1 5 . . . 4 . 10 . 9 4 . . . . Track 2 | . . . . . . 1 . 1 . . . . . . . Assimilate 3 | . . 2 . . . . . . . 1 . . . . . Botnet 12 | . . 2 . . . 2 . 3 . 2 3 . . . . Operators 7 | . 1 1 . . . 1 . 1 . 2 1 . . . . Skim 9 | . . . . . . . . 5 . 4 . . . . . Fabricators 1 | . . . . . . . . . . 1 . . . . . Haulers 1 | . . . . . . . . . . 1 . . . . . Repair Stations . | . . . . . . . . . . . . . . . . Recycling Units 21 | . 3 3 . . . . . 9 . 5 1 . . . . Monitor 1 | . . . . . . . . 1 . . . . . . . Reject 5 | . 1 1 . . . . . 3 . . . . . . . Recyclers 5 | . 1 2 . . . . . 2 . . . . . . . Mask 4 | . 1 . . . . . . 3 . . . . . . . Fedlink 4 | . . . . . . . . . . 4 . . . . . Scrapoids 2 | . . . . . . . . . . 1 1 . . . . Scanalyzers . | . . . . . . . . . . . . . . . . Garrison Access . | . . . . . . . . . . . . . . . . Data Cores Recovered . | . . . . . . . . . . . . . . . . Used . | . . . . . . . . . . . . . . . . Hacking Detections 53 | . 5 9 . . . 4 3 9 . 9 8 3 . 1 2 Full Trace Events 3 | . . 1 . . . . . 2 . . . . . . . Feedback Events . | . . . . . . . . . . . . . . . . Feedback Blocked . | . . . . . . . . . . . . . . . . Robot Schematics Acquired . | . . . . . . . . . . . . . . . . Robots Built . | . . . . . . . . . . . . . . . . Authchips . | . . . . . . . . . . . . . . . . Time . | . . . . . . . . . . . . . . . . Total Robot Build Rating . | . . . . . . . . . . . . . . . . Part Schematics Acquired 1 | . . . . . . . . . . . . . . . 1 Parts Built . | . . . . . . . . . . . . . . . . Authchips . | . . . . . . . . . . . . . . . . Time . | . . . . . . . . . . . . . . . . Total Part Build Rating . | . . . . . . . . . . . . . . . . Parts Repaired 1 | . . . . . . . . . . 1 . . . . . Time 22 | . . . . . . . . . . 22 . . . . . Parts Recycled . | . . . . . . . . . . . . . . . . Recycled Matter . | . . . . . . . . . . . . . . . . Retrieved Matter . | . . . . . . . . . . . . . . . . Retrieved Components . | . . . . . . . . . . . . . . . . Parts Scanalyzed 2 | . . . . . . . . . . . . . . . 2 Part Schematics Acquired 1 | . . . . . . . . . . . . . . . 1 Parts Damaged . | . . . . . . . . . . . . . . . . Bothacking | -11 -10 -9 -9 -9 -8 -8 -8 -8 -8 -6 -6 -6 -6 -6 -5 ------------ Run | Yrd Mat Mat Min Exi Min Mat Sto Rec Scr Fac Ext Cet Arc Hub Fac Used RIF Installer . | . . . . . . . . . . . . . . . . Robots Hacked 3 | . . . . . . . . . 3 . . . . . . Non-combat 1 | . . . . . . . . . 1 . . . . . . Combat 2 | . . . . . . . . . 2 . . . . . . Robot Hacks Applied 4 | . . . . . . . . . 4 . . . . . . parse_system 4 | . . . . . . . . . 4 . . . . . . Relay Couplers Released . | . . . . . . . . . . . . . . . . Fabnet Peak Effective % . | . . . . . . . . . . . . . . . . Robots Rewired 28 | . . . . . . . . . . . 28 . . . . Allies Hacked 1 | . . . . . . . . . . . 1 . . . . Hacks Repelled . | . . . . . . . . . . . . . . . . Allies | -11 -10 -9 -9 -9 -8 -8 -8 -8 -8 -6 -6 -6 -6 -6 -5 -------- Run | Yrd Mat Mat Min Exi Min Mat Sto Rec Scr Fac Ext Cet Arc Hub Fac Total Allies 45 | . . 1 . . . . . . . 6 38 . . . . Largest Group 21 | . . 1 1 1 1 . . . . 5 21 6 5 . . Highest-Rated Group 640 | . . 10 10 10 10 . . . . 146 640 183 154 . . Highest-Rated Ally 39 | . . 10 10 10 10 . . . . 31 39 39 39 . . Total Orders . | . . . . . . . . . . . . . . . . Ally Attacks 312 | . . . . . . . . . . 23 257 13 19 . . Total Damage 6236 | . . . . . . . . . . 406 5215 249 366 . . Kills 48 | . . . . . . . . . . 3 41 3 1 . . Allies Corrupted . | . . . . . . . . . . . . . . . . Allies Melted . | . . . . . . . . . . . . . . . . Intel | -11 -10 -9 -9 -9 -8 -8 -8 -8 -8 -6 -6 -6 -6 -6 -5 ------- Run | Yrd Mat Mat Min Exi Min Mat Sto Rec Scr Fac Ext Cet Arc Hub Fac Active Infowar (turns) 9228 | 133 336 . . . . 676 167 . . 3898 2557 259 399 506 297 Sensors 2933 | . . . . . . . . . . 2052 515 . . 69 297 Terrain 332 | 114 . . . . . . . . . 218 . . . . . Seismic 1198 | 19 336 . . . . 676 167 . . . . . . . . Decoding 7617 | . . . . . . . . . . 3896 2557 259 399 506 . Robot Analysis Total . | . . . . . . . . . . . . . . . . Derelict Logs Recovered . | . . . . . . . . . . . . . . . . Drone Launches . | . . . . . . . . . . . . . . . . Drone Recoveries . | . . . . . . . . . . . . . . . . Decoded 0b10 Intel 84 | . . . . . . . . . . 58 12 1 3 10 . Traps 52 | . . . . . . . . . . 37 9 . . 6 . Emergency Access 25 | . . . . . . . . . . 20 1 . . 4 . Exits 7 | . . . . . . . . . . 1 2 1 3 . . Exploration | -11 -10 -9 -9 -9 -8 -8 -8 -8 -8 -6 -6 -6 -6 -6 -5 ------------- Run | Yrd Mat Mat Min Exi Min Mat Sto Rec Scr Fac Ext Cet Arc Hub Fac Turns Passed 16609 | 186 704 1455 101 211 370 695 540 1253 3052 3898 2565 259 399 577 344 Spaces Moved 8670 | 98 422 778 46 137 210 333 214 720 1845 2066 1110 139 163 246 143 Core 2 | 2 . . . . . . . . . . . . . . . Treads . | . . . . . . . . . . . . . . . . Legs . | . . . . . . . . . . . . . . . . Wheels 8668 | 96 422 778 46 137 210 333 214 720 1845 2066 1110 139 163 246 143 Hover . | . . . . . . . . . . . . . . . . Flight . | . . . . . . . . . . . . . . . . Fastest Speed 50 | 50 90 130 155 155 155 145 145 145 150 140 140 140 140 140 140 Average Speed 150 | 88 122 145 155 155 155 149 146 160 156 153 146 140 144 140 193 Slowest Speed 230 | 90 135 155 155 155 230 155 205 165 165 220 150 150 150 140 220 Overloaded Moves . | . . . . . . . . . . . . . . . . Propulsion Burnouts . | . . . . . . . . . . . . . . . . Robots Hopped . | . . . . . . . . . . . . . . . . Potential Cave-ins . | . . . . . . . . . . . . . . . . Cave-ins Triggered 1 | . . . . . . . . . . 1 . . . . . Exploration Rate (%) 51 | 5 62 73 20 50 44 31 35 98 94 36 88 70 83 28 6 Regions Visited 15 Branch Regions 10 Pre-discovered Areas 4 | . . . . 1 . . . . 2 1 . . . . . Known Exits Taken 7 | . . 1 . . . 1 . . . 1 1 1 1 1 . Unknown Exits Taken 8 | 1 1 . 1 1 1 . 1 1 1 . . . . . . Scrap Searched 8 | . . . 1 . 1 . . . 6 . . . . . . Spaces Dug 46 | . . . . . . . . . . 46 . . . . . Terrain Destroyed 603 | . . 19 . . 9 21 21 . . 94 51 . 7 343 38 Melee 46 | . . . . . . . . . . 46 . . . . . Projectile 23 | . . . . . . . . . . . 8 . 7 8 . AOE 534 | . . 19 . . 9 21 21 . . 48 43 . . 335 38 Terrain Rammed . | . . . . . . . . . . . . . . . . Walls Destroyed . | . . . . . . . . . . . . . . . . Machines Disabled . | . . . . . . . . . . . . . . . . Actions | -11 -10 -9 -9 -9 -8 -8 -8 -8 -8 -6 -6 -6 -6 -6 -5 --------- Run | Yrd Mat Mat Min Exi Min Mat Sto Rec Scr Fac Ext Cet Arc Hub Fac Total 11093 | 143 520 967 76 136 234 464 336 801 2012 2556 1834 177 273 369 195 Wait 1003 | . 28 78 29 . 10 42 15 58 142 225 250 9 60 50 7 Move 8656 | 97 421 777 45 136 209 332 213 719 1844 2065 1110 138 162 245 143 Hop . | . . . . . . . . . . . . . . . . Pick Up 117 | 9 7 18 1 . 1 19 8 2 6 24 8 6 3 1 4 Fast Attach 38 | 7 2 2 . . . . 4 . 1 11 6 . 1 . 4 Attach 55 | . . 2 . . 2 11 3 . 1 10 3 4 . 7 12 Detach 25 | . 1 1 . . . 1 2 . 1 7 4 . 1 1 6 Swap 154 | 1 7 13 . . 1 10 11 6 3 45 32 4 13 8 . Drop 120 | 1 3 17 1 . 2 14 10 6 9 30 10 2 9 2 4 Fire 490 | 28 51 59 . . 9 35 47 10 . 77 89 5 24 43 13 Melee 71 | . . . . . . . 2 . 5 62 . . . . 2 Ram 12 | . . . . . . . . . . . . . . 12 . Kick . | . . . . . . . . . . . . . . . . Crush . | . . . . . . . . . . . . . . . . Escape Stasis 37 | . . . . . . . 21 . . . 16 . . . . Rewire 290 | . . . . . . . . . . . 290 . . . . Trap . | . . . . . . . . . . . . . . . . Miscellaneous 25 | . . . . . . . . . . . 16 9 . . . Route ------- -11/Scrapyard -10/Materials (discovered 2 exits: *Mat x2) -9/Materials (discovered 4 exits: *Mat x2 / *Min x2) -9/Mines -9/Exiles -8/Mines -8/Materials (discovered 2 exits: *Sto x2) -8/Storage -8/Recycling (discovered 2 exits: *Fac / *Scr) -8/Scraptown (discovered 2 exits: *Fac x2) -6/Factory (discovered 2 exits: *Low / *Ext) -6/Extension (discovered 3 exits: *Fac x2 / *Cet) -6/Cetus -6/Archives (discovered 3 exits: *Fac / *Hub x2) -6/Hub_04(d) -5/Factory History --------- Turn | Location | Event 11 | -11/Scrapyard | Discovered new exit (range 15) 187 | -11/Scrapyard | Entered Materials 323 | -10/Materials | Build established: Mutant 323 | -10/Materials | Discovered new exit (range 11) 534 | -10/Materials | Core integrity fell below 50% 568 | -10/Materials | Discovered new exit (range 11) 891 | -10/Materials | Entered another Materials area 891 | -9/Materials | Evolved 2 slots: Utility x1, Weapon x1 1084 | -9/Materials | Destroyed 8 combat bots 1321 | -9/Materials | Build established: Tank 1369 | -9/Materials | Discovered new exit (range 15) 1638 | -9/Materials | Discovered new exit (range 13) 1755 | -9/Materials | Discovered new exit (range 5) 2152 | -9/Materials | Identified exit to Mines 2346 | -9/Materials | Entered Mines 2346 | -9/Mines | Accompanied by 1 ally 2347 | -9/Mines | Met a Derelict bent on vengeance 2353 | -9/Mines | Received a Rocket Launcher from a helpful Derelict 2413 | -9/Mines | Deemed a non-threat by the Exiles lab entrance 2414 | -9/Mines | Discovered new exit (range 5) 2447 | -9/Mines | Entered Exiles 2447 | -9/Exiles | Accompanied by 1 ally 2485 | -9/Exiles | Met 8R-AWN 2511 | -9/Exiles | Met EX-HEX 2575 | -9/Exiles | Met EX-DEC 2582 | -9/Exiles | Learned location of Zion (-6) 2641 | -9/Exiles | Discovered new exit (range 11) 2658 | -9/Exiles | Entered Mines 2658 | -8/Mines | Accompanied by 1 ally 3014 | -8/Mines | Discovered new exit (range 9) 3028 | -8/Mines | Entered Materials 3028 | -8/Materials | Evolved 2 slots: Utility x2 3127 | -8/Materials | Garrison activated, responded to threat 3416 | -8/Materials | Identified exit to Storage 3604 | -8/Materials | Lost 3 parts (1n2w) 3723 | -8/Materials | Entered Storage 3798 | -8/Storage | Garrison activated, responded to threat 3911 | -8/Storage | Build established: Scavenger-Tank 4257 | -8/Storage | Used back door to open Recycling access 4257 | -8/Storage | Discovered new exit (range 5) 4263 | -8/Storage | Entered Recycling 4264 | -8/Recycling | Met a Zionite searching for Scraptown 4448 | -8/Recycling | Build established: Scavenger-Mutant 4763 | -8/Recycling | Discovered new exit (range 5) 4820 | -8/Recycling | Build established: Tank 5419 | -8/Recycling | Scanned before Scraplab entrance 5443 | -8/Recycling | Entered Scraplab 5456 | -8/Recycling | Discovered new exit (range 3) 5516 | -8/Recycling | Entered Scraptown 5870 | -8/Scraptown | Received an X-ray algorithm 6096 | -8/Scraptown | Discovered new exit (range 7) 6215 | -8/Scraptown | Visited Assassins FH 6284 | -8/Scraptown | Visited Shadow of the Wyrm 6321 | -8/Scraptown | Visited Spacefarers 6408 | -8/Scraptown | Visited Bundlers 6695 | -8/Scraptown | Visited Comm Corps 6767 | -8/Scraptown | Visited TADAMA 6812 | -8/Scraptown | Visited Cyclists 6857 | -8/Scraptown | Visited UFD Registry 6857 | -8/Scraptown | Registered with UFD as "Bladechaser" 6887 | -8/Scraptown | Entered Cyclist Reading Room 6960 | -8/Scraptown | Visited Derelict Rescue Squad 6996 | -8/Scraptown | Visited Sword Containment 7029 | -8/Scraptown | Visited A0-MCA Data Center 7039 | -8/Scraptown | Given an A+ rating by A0-MCA 7236 | -8/Scraptown | Visited Infowarlord's Domain 7281 | -8/Scraptown | Visited Scrapoid Pod Storage 7344 | -8/Scraptown | Visited Chapter 10 7392 | -8/Scraptown | Visited Supply Room 7419 | -8/Scraptown | Visited Research Penetration Think Tank 7457 | -8/Scraptown | Visited Science Testing Area 7614 | -8/Scraptown | Found Scrap Suit 7618 | -8/Scraptown | Found Scrap Suit 7935 | -8/Scraptown | Discovered new exit (range 5) 7975 | -8/Scraptown | Build established: Mutant 8472 | -8/Scraptown | Met Optimus 8472 | -8/Scraptown | Accepted into 0bPrime 8511 | -8/Scraptown | Build established: Tank 8568 | -8/Scraptown | Entered Factory 8568 | -6/Factory | Evolved 4 slots: Utility x3, Weapon x1 8682 | -6/Factory | Crushed by falling debris 9086 | -6/Factory | Build established: Scavenger-Tank 9643 | -6/Factory | Cargo convoy interrupted 9653 | -6/Factory | Discovered new exit (range 6) 9660 | -6/Factory | Identified exit to Lower Caves 9815 | -6/Factory | Loaded intel: 8 recycling unit locations 10481 | -6/Factory | Build established: Skirmisher 10742 | -6/Factory | Scrapoid reinforcements arrived 10811 | -6/Factory | Lost 5 allies 10824 | -6/Factory | Found Scrap Suit 10829 | -6/Factory | Found Scrap Suit 11169 | -6/Factory | Learned location of Protoforge (-3) 11215 | -6/Factory | Garrison activated, responded to threat 11240 | -6/Factory | Build established: Scavenger-Skirmisher 11488 | -6/Factory | Repaired Hrd. Heavy Armor Plating 12411 | -6/Factory | Identified exit to Extension 12466 | -6/Factory | Entered Extension 12867 | -6/Extension | Scrapoid reinforcements arrived 12924 | -6/Extension | Found Scrap Suit 12956 | -6/Extension | Lost 3 allies 13066 | -6/Extension | Found Scrap Suit 13166 | -6/Extension | Disrupted transfer network 13472 | -6/Extension | Rescued a captive Derelict 13472 | -6/Extension | Rescued a captive Derelict 13518 | -6/Extension | Rescued a captive Derelict 13519 | -6/Extension | Rescued a captive Derelict 13547 | -6/Extension | Rescued a captive Derelict 13637 | -6/Extension | Build established: Commander-Tank 13932 | -6/Extension | Spotted B-75 Beast 13944 | -6/Extension | Destroyed B-75 Beast 13955 | -6/Extension | Spotted B-75 Beast 13960 | -6/Extension | Identified exit to Factory 13971 | -6/Extension | Destroyed B-75 Beast 14002 | -6/Extension | Lost 5 allies 14089 | -6/Extension | Lost 5 allies 14496 | -6/Extension | Lost 5 allies 14502 | -6/Extension | Build established: Commander-Scrapper 14526 | -6/Extension | Energy Cycler disabled 14526 | -6/Extension | Rescued a captive Derelict 14529 | -6/Extension | Rescued a captive Derelict 14531 | -6/Extension | Rescued a captive Derelict 14532 | -6/Extension | Rescued a captive Derelict 14542 | -6/Extension | Rescued a captive Derelict 14566 | -6/Extension | First assault squad dispatched 14951 | -6/Extension | High security lockdown imminent 14981 | -6/Extension | Destroyed 7 combat bots 14990 | -6/Extension | Identified exit to Cetus 15009 | -6/Extension | Discovered exit to Factory (range 10) 15031 | -6/Extension | High security lockdown engaged 15031 | -6/Extension | Entered Cetus 15031 | -6/Cetus | Accompanied by 6 allies 15053 | -6/Cetus | Spotted Cetus Guard 15054 | -6/Cetus | Spotted Cetus Guard 15057 | -6/Cetus | Spotted Cetus Guard 15057 | -6/Cetus | Spotted Cetus Guard 15062 | -6/Cetus | Destroyed Cetus Guard 15063 | -6/Cetus | Allies destroyed Cetus Guard 15069 | -6/Cetus | Allies destroyed Cetus Guard 15070 | -6/Cetus | Allies destroyed Cetus Guard 15226 | -6/Cetus | Ran an X-ray algorithm 15239 | -6/Cetus | Identified exit to Archives 15290 | -6/Cetus | Entered Archives 15290 | -6/Archives | Accompanied by 5 allies 15367 | -6/Archives | Lost 5 allies 15371 | -6/Archives | Identified exit to Hub_04(d) 15598 | -6/Archives | Build established: Scavenger-Tank 15689 | -6/Archives | Entered Hub_04(d) 15760 | -6/Hub_04(d) | Garrison activated, responded to threat 15815 | -6/Hub_04(d) | Destroyed 7 combat bots 15817 | -6/Hub_04(d) | Core integrity fell below 50% 15834 | -6/Hub_04(d) | Discovered exit to Factory (range 4) 16148 | -6/Hub_04(d) | Network Hub disabled 16148 | -6/Hub_04(d) | Network Hub disabled 16194 | -6/Hub_04(d) | Spotted Lightning 16194 | -6/Hub_04(d) | Spotted Lightning 16194 | -6/Hub_04(d) | Spotted Lightning 16266 | -6/Hub_04(d) | Entered Factory 16266 | -5/Factory | Evolved 2 slots: Utility x1, Weapon x1 16275 | -5/Factory | Lost 9 parts (1p1n4u3w) 16346 | -5/Factory | Assembled infested ambush trap array 16390 | -5/Factory | Destroyed 7 combat bots 16394 | -5/Factory | Lost 3 parts (1p1n1w) 16573 | -5/Factory | Build established: Scavenger-Scrapper 16610 | -5/Factory | Self-destructed Last Messages --------------- 16572_ K-01 Serf pushes L-41 Fighter. 16575_ W-25 Informer destroyed. 16575_ K-01 Serf pushes L-41 Fighter. 16577_ Ovr. Scrapsphere repairs itself (+6). 16577_ Acquired 2 matter. 16593_ System corrupted: Heat flow error (+272). 16602_ C-30 ARC bursts open, deploying its payload. 16602_ D-63 Destroyer unfolds itself. 16602_ Lgt. Fission Core destroyed. 16604_ Identified Adv. Variable Charge Gun. 16605_ U-05 Engineer lays Concrete. 16606_ Beamcaster destroyed. 16607_ U-05 Engineer lays Concrete. 16607_ Subcomponent Replicator disabled. 16608_ U-05 Engineer lays Concrete. 16608_ U-05 Engineer builds a Wall. 16608_ Centrium Medium Armor Plating destroyed. 16609_ U-05 Engineer lays Concrete. 16609_ Ovr. Barrage Gun destroyed. 16610_ U-05 Engineer lays Concrete. Map ----- +----------------------------------------------------+ | ?????????????????????????????????????????????????? | | ?????????????????????????????????????????????????? | | ?????????????????????????????????????????????????? | | ?????????????????????????????????????????????????? | | ?????????????????????????????????????????????????? | | ?????????????????????????????????????????????????? | | ?????????????????????????????????????????????????? | | ?????????????????????????????????????????????????? | | ??? ? ?????????????????????????????????????????? | | ??# ? / ???????????????????????????????????????? | | ??# ? #?????????????????????????????????????? | | ??# " #############?????????????????????????? | | ??# " ## ?????????????????????????? | | ??# " !! ## ????????????????????????? | | ??# " !! ## ? ????????????????????????? | | ??# " ## """ ????????????????????????? | | ??# ## """"" #???????????????????????? | | ??# ## """"" #???????????????????????? | | ??# ## ###?????????????????????? | | ??# ## """ # #####?????????????????? | | ### ## """"" #?????????????????? | | # ## """" #?????????????????? | | # ## ##?????????????????? | | " # ## #?????????????????? | | " #+##+######## # #########+#????????? | | " # @ ??????? | | "!# ??????? | | += u ??????? | | # ??????? | | #= u ???????? | | " ##### ### ######## T# ######???????? | | " #?# # # # #?????##### #????????????? | | " #?# # # ##?????????# #????????????? | | ### # # ###??????????# #????????????? | | #### # ###????????????# #????????????? | | ?# # # ##???????????# #????????????? | | ?# """#+#""######??????#dd #????????????? | | ## " #??????# #????????????? | | # " ! ########% #????????????? | | ## " # +????????????? | | ?# " # ?????????????? | | ?# " # ???????????????? | | ?# " + ^ ????????????????? | | ?### # ???????????????????? | | ???# # % ###+#??????????????????????? | | ???# #% # ?????????????????? | | ???# "T # # #????????????????? | | ???# """ #??? ?????????????????? | | ???# #??????? ?????????????????? | | ???####### ## ## #??????????????????????????? | +----------------------------------------------------+ Best States ------------- Heat Dissipation 78 Coolant Potential 50 Energy Generation 25 Energy Capacity 350 Matter Stores 300 Matter Capacity 350 Sight Range 16 Robot Scan Range 16 Terrain Scan Range 20 Terrain Scan Density 210 Armor Coverage 750 Resistance: KI 20 Evasion (%) 42 Matter Filtering 30 Item Schematics ----------------- Adv. Heat Sink | -5/Factory | Scanalyzed Robot Schematics ------------------ None Fabricated ------------ Nothing Repaired ---------- Hrd. Heavy Armor Plating | 39% | -6/Factory Alien Tech Used ----------------- None Achievements -------------- More Dakka Please Challenges ------------ None Game ------ Seed DisposableBraceRailgun Manual? 0 Play Time 03:13:32 Cumulative 159.6 hours Start 2025.08.15 @ 20:25:04 End 2025.08.27 @ 12:22:18 Sessions 11 Manual Loads 0 Difficulty Rogue Special Mode None Game No. 82 Rogue 78 Adventurer 2 Explorer 2 Win Type - Total 2 Types 1/0/1/0/0/0/0/0/0/0 Lore% 63 Gallery% 63 Achievement% 53 Wizard Run 0 Options --------- Layout 0 ASCII 0 Keyboard 1 Movement Arrows Keybinds 0 Fullscreen 2 Font 18/Terminus Map View 76x50 Zoom Use 0% Tactical HUD 1 Map Filters NONE Filters NONE Steam 1 RUN: 3055d3ef-667c-403f-bd44-d5e9672de180